Workbook

Sheet Mittari
A5: Polttoaineen ostohinta | B5: 10…45 €/MWh | G5: Sähkön myyntihinta | H5: 0…122 €/MWh
D19: Sähkön myyntihinta | E19: =Numerot!C19 -> 54.9 | F19: (ALV 22%)
A34: Tuotto-odotus vuodessa | B34: =Numerot!F12 -> 15000000
A42: Polttoaineen hintamittari | D42: Asteikon alaraja | E42: 10 | F42: ALV22%
D43: Asteikon yläraja | E43: 45 | F43: ALV22%
B45: Asteikko | D45: Asteikon alueet | E45: Asteikon otsikot | F45: Viisari | G45: Viisarin ohjaus
A46: Näkymätön osa ympyrästä | B46: 180 | D46: 180 | E46: =G47 -> 19.45 | F46: 180 | G46: 27 | H46: %
A47: Ensimmäinen alue | B47: 72 | D47: 9 | E47: =E42 -> 10 | F47: =ABS(ROUNDDOWN((((B46-F48)/100)*G46),0)) -> 48 | G47: =(G46/100)*(E43-E42)+E42 -> 19.45 | H47: ALV22%
A48: Toinen alue | B48: 63 | D48: 18 | E48: =$E$42+0.1*($E$43-$E$42) -> 13.5 | F48: 1
A49: Kolmas alue | B49: 45 | D49: 18 | E49: =$E$42+0.2*($E$43-$E$42) -> 17 | F49: =360-SUM(F46:F48) -> 131
D50: 18 | E50: =$E$42+0.3*($E$43-$E$42) -> 20.5
D51: 18 | E51: =$E$42+0.4*($E$43-$E$42) -> 24
D52: 18 | E52: =$E$42+0.5*($E$43-$E$42) -> 27.5
D53: 18 | E53: =$E$42+0.6*($E$43-$E$42) -> 31
D54: 18 | E54: =$E$42+0.7*($E$43-$E$42) -> 34.5
D55: 18 | E55: =$E$42+0.8*($E$43-$E$42) -> 38
D56: 18 | E56: =$E$42+0.9*($E$43-$E$42) -> 41.5
D57: 9 | E57: =E43 -> 45
A59: Kaukolämmön hintamittari | D59: Asteikon alaraja | E59: 18.5
D60: Asteikon yläraja | E60: 120
B62: Asteikko | D62: Asteikon alueet | E62: Asteikon otsikot | F62: Viisari(astetta) | G62: Viisarin ohjaus
A63: Näkymätön osa ympyrästä | B63: 180 | D63: 180 | E63: =G64 -> 45.90268611 | F63: 180 | G63: 34
A64: Ensimmäinen alue | B64: 53 | D64: 9 | E64: =E59 -> 18.5 | F64: =ABS(ROUNDDOWN((((F63-F65)/(E60-E59))*(G64-E59)),0)) -> 48 | G64: =Numerot!C18 -> 45.90268611 | H64: ALV22%
A65: Toinen alue | B65: 82 | D65: 18 | E65: =$E$59+0.1*($E$60-$E$59) -> 28.65 | F65: 1
A66: Kolmas alue | B66: 45 | C66: =SUM(B64:B66) -> 180 | D66: 18 | E66: =$E$59+0.2*($E$60-$E$59) -> 38.8 | F66: =360-SUM(F63:F65) -> 131
D67: 18 | E67: =$E$59+0.3*($E$60-$E$59) -> 48.95
D68: 18 | E68: =$E$59+0.4*($E$60-$E$59) -> 59.1
D69: 18 | E69: =$E$59+0.5*($E$60-$E$59) -> 69.25
D70: 18 | E70: =$E$59+0.6*($E$60-$E$59) -> 79.4
D71: 18 | E71: =$E$59+0.7*($E$60-$E$59) -> 89.55
D72: 18 | E72: =$E$59+0.8*($E$60-$E$59) -> 99.7
D73: 18 | E73: =$E$59+0.9*($E$60-$E$59) -> 109.85
D74: 9 | E74: =E60 -> 120

Sheet Numerot
D3: Vuosituotannot | F3: Kauko- lämpöä | G3: Vastapaine- sähköä | H3: Lauhde- sähköä | I3: Yhteensä | J3: Kiinteät kustannukset | K3: Kiinteät kustannukset, €/MWh
D4: Voimalaitos A | F4: 600 | G4: 300 | H4: 600 | I4: =SUM(F4:H4) -> 1500 | J4: 27000000 | K4: =J4/(I4*1000) -> 18
D5: Voimalaitos B | F5: 1200 | G5: 600 | H5: 0 | I5: =SUM(F5:H5) -> 1800 | J5: 10000000 | K5: =J5/(I5*1000) -> 5.555555556
H6: Yhteensä | I6: =SUM(I4:I5) -> 3300 | J6: =SUM(J4:J5) -> 37000000
D8: Kulukerroin | F8: 1.2 | G8: 1.25 | H8: 2.5
D9: Sis.käyttö/häviökerroin | F9: 1.08 | G9: 1.1 | H9: 1.1
D12: Tuotto-odotus | F12: 15000000 | G12: vuodessa
E16: Polttoaineen hinta, €/MWh | F16: Kaukolämpö | I16: Vastapainesähkö | L16: Lauhdesähkö | O16: Bruttotulot, € | P16: Muuttuvat kulut, € | Q16: Kate, € | R16: Kate, Voimalaitos 1+Voimalaitos 2 € | S16: Kokonaistulos, tuotto-odotus huomioitu €
C17: ALV 22% | F17: Myyntihinta, €/MWh | G17: Bruttotulo, € | H17: Kulut + verkostohäviöt, € | I17: Myyntihinta, €/MWh | J17: Bruttotulo, € | K17: Kulut + verkostohäviöt, € | L17: Myyntihinta, €/MWh | M17: Bruttotulo, € | N17: Kulut + verkostohäviöt, €
A18: Kaukolämpö | B18: 37.62515255 | C18: =B18*1.22 -> 45.90268611 | D18: =$D$4 -> Voimalaitos A | E18: =Mittari!G47/1.22 -> 15.94262295 | F18: =B18 -> 37.62515255 | G18: =F18*$F$4*1000 -> 22575091.53 | H18: =$F$4*E18*$F$8*$F$9*1000 -> 12396983.61 | I18: =B19 -> 45 | J18: =$G$4*I18*1000 -> 13500000 | K18: =$G$4*E18*$G$8*$G$9*1000 -> 6576331.967 | L18: =B20 -> 45 | M18: =$H$4*L18*1000 -> 27000000 | N18: =$H$4*E18*$H$8*$H$9*1000 -> 26305327.87 | O18: =G18+J18+M18 -> 63075091.53 | P18: =N18+K18+H18 -> 45278643.44 | Q18: =O18-P18-$J$4 -> -9203551.913 | R18: =Q18+Q19 -> 15000000 | S18: =R18-$F$12 -> -1.490116119e-08
A19: Vastapainesähkö | B19: 45 | C19: =B19*1.22 -> 54.9 | D19: =$D$5 -> Voimalaitos B | E19: =E18 -> 15.94262295 | F19: =F18 -> 37.62515255 | G19: =F19*$F$5*1000 -> 45150183.06 | H19: =$F$5*E19*$F$8*$F$9*1000 -> 24793967.21 | I19: =I18 -> 45 | J19: =$G$5*I19*1000 -> 27000000 | K19: =$G$5*E19*$G$8*$G$9*1000 -> 13152663.93 | L19: =L18 -> 45 | M19: =$H$5*L19*1000 -> 0 | N19: =$H$5*E19*$H$8*$H$9*1000 -> 0 | O19: =G19+J19+M19 -> 72150183.06 | P19: =N19+K19+H19 -> 37946631.15 | Q19: =O19-P19-$J$5 -> 24203551.91
A20: Lauhdesähkö | B20: =$B$19 -> 45 | C20: =B20*1.22 -> 54.9
